fUST/lending_fUST_20241111
["ID","MTS","AMOUNT","RATE_DAILY","PERIOD"]
[341932837,1731310526326,-500.0,0.00024657,2]
[341932838,1731310526335,-500.0,0.00024657,2]
[341932839,1731310526343,-165.7904856,0.00024657,2]
[341932840,1731310526355,-334.2095144,0.00024657,2]
[341932841,1731310526364,-165.7904856,0.00024657,2]
[341932842,1731310526375,-150.0,0.00024657,2]
[341932843,1731310526391,-184.2095144,0.00024657,2]
[341932844,1731310526401,-315.7904856,0.00024657,2]
[341932845,1731310526412,-184.2095144,0.00024657,2]
[341932846,1731310526421,-71.9784851,0.00024657,2]
[341932847,1731310526432,-428.0215149,0.00024657,2]
[341932848,1731310526441,-71.9784851,0.00024657,2]
[341932849,1731310526457,-150.0,0.00024657,2]
[341932850,1731310526472,-278.0215149,0.00024657,2]
[341932851,1731310526481,-221.9784851,0.00024657,2]
[341932852,1731310526493,-278.0215149,0.00024657,2]
[341932853,1731310526503,-221.9784851,0.00024657,2]
[341932854,1731310526514,-150.0,0.00024657,2]
[341932855,1731310526526,-150.75827432,0.00024657,2]
[341932856,1731310526535,-113.12529054,0.00024657,2]
[341932857,1731310526546,-264.54,0.00024657,2]
[341932858,1731310526571,-122.33470946,0.00024657,2]
[341932859,1731310526580,-98.12529054,0.00024657,2]
[341932860,1731310526591,-407.03293118,0.00024657,2]
[341932861,1731310526602,-40.54239382,0.00024657,2]
[341932862,1731310526612,-185.05760618,0.00024657,2]
[341932863,1731310526623,-275.06,0.00024657,2]
[341932864,1731310526636,-41.17756827,0.00024657,2]
[341932865,1731310526646,-144.82243173,0.00024657,2]
[341932866,1731310526657,-150.112233,0.00024657,2]
[341932867,1731310526669,-156.764059,0.00024657,2]
[341932868,1731310526680,-48.30127627,0.00024657,2]
[341932869,1731310526689,-101.81095673,0.00024657,2]
[341932870,1731310526705,-150.112233,0.00024657,2]
[341932871,1731310526724,-150.0,0.00024657,2]
[341932872,1731310526735,-98.07681027,0.00024657,2]
[341932873,1731310526745,-500.0,0.00024657,2]
[341932874,1731310526755,-500.0,0.00024657,2]
[341932875,1731310526764,-500.0,0.00024657,2]
[341932876,1731310526774,-500.0,0.00024657,2]
[341932877,1731310526784,-500.0,0.00024657,2]
[341932878,1731310526794,-401.92318973,0.00024657,2]
[341932879,1731310526805,-98.07681027,0.00024657,2]
[341932880,1731310526816,-500.0,0.00024657,2]
[341932881,1731310526825,-63.32318973,0.00024657,2]
[341932882,1731310526837,-436.67681027,0.00024657,2]
[341932883,1731310526847,-508.24399457,0.00024657,2]
[341932884,1731310526856,-412.59816093,0.00024657,2]
[341932885,1731310526866,-311.76168722,0.00024657,2]
[341932886,1731310526876,-412.08692446,0.00024657,2]
[341932887,1731310526887,-500.0,0.00024657,2]
[341932888,1731310527007,-418.63242255,0.00024657,2]
[341932889,1731310527019,-81.36757745,0.00024657,2]
[341932890,1731310527029,-500.0,0.00024657,2]
[341932891,1731310527039,-500.0,0.00024657,2]
[341932892,1731310527048,-500.0,0.00024657,2]
[341932893,1731310527057,-505.09107921,0.00024657,2]
[341932894,1731310527067,-500.0,0.00024657,2]
[341932895,1731310527077,-413.54134334,0.00024657,2]
[341932896,1731310527089,-86.45865666,0.00024657,2]
[341932897,1731310527098,-500.0,0.00024657,2]
[341932898,1731310527108,-500.0,0.00024657,2]
[341932899,1731310527118,-500.0,0.00024657,2]
[341932900,1731310527129,-528.94741318,0.00024657,2]
[341932901,1731310527142,-501.58231079,0.00024657,2]
[341932902,1731310527152,-383.01161937,0.00024657,2]
[341932903,1731310527170,-122.65047512,0.00024657,2]
[341932904,1731310527180,-503.3674456,0.00024657,2]
[341932905,1731310527190,-500.0,0.00024657,2]
[341932906,1731310527199,-500.0,0.00024657,2]
[341932907,1731310527208,-500.0,0.00024657,2]
[341932908,1731310527218,-500.0,0.00024657,2]
[341932909,1731310527227,-373.98207928,0.00024657,2]
[341932910,1731310527239,-126.01792072,0.00024657,2]
[341932911,1731310527249,-223.98207928,0.00024657,2]
[341932912,1731310527261,-276.01792072,0.00024657,2]
[341932913,1731310527270,-67.22207928,0.00024657,2]
[341932914,1731310527286,-432.77792072,0.00024657,2]
[341932915,1731310527296,-500.0,0.00024657,2]
[341932916,1731310527305,-502.25680109,0.00024657,2]
[341932917,1731310527315,-1001.98234887,0.00024657,2]
[341932918,1731310527325,-500.0,0.00024657,2]
[341932919,1731310527335,-62.98292932,0.00024657,2]
[341932920,1731310527355,-437.01707068,0.00024657,2]
[341932921,1731310527364,-62.98292932,0.00024657,2]
[341932922,1731310527379,-437.01707068,0.00024657,2]
[341932923,1731310527393,-199.9637674,0.00024657,2]
[341932924,1731310527409,-300.0362326,0.00024657,2]
[341932925,1731310527418,-199.9637674,0.00024657,2]
[341932926,1731310527429,-300.0362326,0.00024657,2]
[341932927,1731310527438,-199.9637674,0.00024657,2]
[341932928,1731310527465,-300.0362326,0.00024657,2]
[341932929,1731310527474,-253.12967337,0.00024657,2]
[341932930,1731310527530,-249.59826897,0.00024657,2]
[341932931,1731310527539,-30.25438884,0.00024657,2]
[341932932,1731310527551,-259.20622899,0.00024657,2]
[341932933,1731310527563,-210.53938217,0.00024657,2]
[341932934,1731310527574,-289.46061783,0.00024657,2]
[341932935,1731310527586,-210.53938217,0.00024657,2]
[341932936,1731310527595,-289.46061783,0.00024657,2]
[341932937,1731310527611,-212.52381682,0.00024657,2]
[341932938,1731310527621,-287.47618318,0.00024657,2]
[341932939,1731310527638,-216.25109138,0.00024657,2]
[341932940,1731310527647,-283.74890862,0.00024657,2]
[341932941,1731310527659,-220.55772553,0.00024657,2]
[341932942,1731310527668,-279.44227447,0.00024657,2]
[341932943,1731310527680,-285.30232477,0.00024657,2]
[341932944,1731310527689,-214.69767523,0.00024657,2]
[341932945,1731310527701,-285.30232477,0.00024657,2]
[341932946,1731310527711,-214.69767523,0.00024657,2]
[341932947,1731310527724,-178.57293106,0.00024657,2]
[341932948,1731310527735,-106.72939371,0.00024657,2]
[341932949,1731310527745,-183.60344756,0.00024657,2]
[341932950,1731310527757,-316.39655244,0.00024657,2]
[341932951,1731310527766,-183.60344756,0.00024657,2]
[341932952,1731310527778,-170.75570095,0.00024657,2]
[341932953,1731310527789,-145.64085149,0.00024657,2]
[341932954,1731310527798,-354.35914851,0.00024657,2]
[341932955,1731310527810,-145.64085149,0.00024657,2]
[341932956,1731310527819,-354.35914851,0.00024657,2]
[341932957,1731310527835,-145.64085149,0.00024657,2]
[341932958,1731310527844,-354.35914851,0.00024657,2]
[341932959,1731310527856,-235.59682134,0.00024657,2]
[341932960,1731310527865,-132.86017757,0.00024657,2]
[341932961,1731310527877,-367.13982243,0.00024657,2]
[341932962,1731310527889,-132.86017757,0.00024657,2]
[341932963,1731310527900,-367.13982243,0.00024657,2]
[341932964,1731310527910,-132.86017757,0.00024657,2]
[341932965,1731310642891,250.0,0.00027,60]
[341932966,1731310701880,517.193,0.00031342,30]
[341932973,1731310942742,1169.27083333,0.00020844,2]
[341932977,1731311028428,160.876194,0.00013973,2]
[341932979,1731311254923,1169.27083333,0.00020844,2]
[341933157,1731311440039,-1169.27083333,0.00020942,2]
[341933159,1731311440048,-185.27983831,0.00023332,2]
[341933330,1731311444456,-0.20111495,0.00023332,2]
[341933331,1731311444678,-114.51904674,0.00023332,2]
[341933332,1731311444688,-300.0,0.00023332,2]
[341933333,1731311444698,-150.0,0.00023333,2]
[341933334,1731311444708,-530.0,0.00023333,2]
[341933335,1731311444717,-935.33017831,0.00023333,2]
[341933361,1731311777677,160.876194,0.00013973,2]
[341933363,1731311867500,6252.42,0.00020844,2]
[341933364,1731311879883,1169.27083333,0.00020844,2]
[341933365,1731311948715,1524.0,0.00027,60]
[341933366,1731312192126,1169.27083333,0.00020844,2]
[341933367,1731312392660,157.48,0.0002636,60]
[341933369,1731312490889,160.876194,0.00013973,2]
[341933370,1731312504383,1169.27083333,0.00020844,2]
[341933395,1731312634914,-1169.27083333,0.00020866,2]
[341933396,1731312634924,-157.238,0.0002159,2]
[341933397,1731312634934,-4894.0,0.00021922,2]
[341933398,1731312634943,-1495.72391697,0.00023153,2]
[341933399,1731312634954,-300.0,0.00023332,2]
[341933400,1731312634963,-300.0,0.00023332,2]
[341933401,1731312634972,-173.709,0.00023333,2]
[341933402,1731312634982,-150.0,0.00023333,2]
[341933403,1731312634991,-150.0,0.00023333,2]
[341933404,1731312635001,-150.0,0.00023333,2]
[341933405,1731312635010,-150.0,0.00023333,2]
[341933406,1731312635019,-1127.0,0.00023333,2]
[341933407,1731312635029,-530.0,0.00023333,2]
[341933408,1731312635039,-2391.0,0.00023333,2]
[341933409,1731312635050,-457.8621683,0.00023476,2]
[341933410,1731312635059,-1000.0,0.00024,10]
[341933411,1731312635231,-4894.0,0.00024114,4]
[341933412,1731312635242,-153.0,0.00024149,2]
[341933413,1731312635251,-153.0,0.00024149,2]
[341933414,1731312635260,-153.0,0.00024149,2]
[341933415,1731312635270,-454.869319,0.000242,2]
[341933416,1731312635279,-413.5135009,0.000242,2]
[341933417,1731312635288,-187.2,0.00024286,3]
[341933418,1731312635298,-2785.6296559,0.00024457,2]
[341933419,1731312635307,-600.0,0.0002446,2]
[341933420,1731312635316,-500.0,0.00024517,2]
[341933421,1731312635326,-500.0,0.00024517,2]
[341933422,1731312635335,-500.0,0.00024517,2]
[341933423,1731312635344,-500.0,0.00024517,2]
[341933424,1731312635353,-500.0,0.00024517,2]
[341933425,1731312635363,-500.0,0.00024517,2]
[341933426,1731312635372,-500.0,0.00024517,2]
[341933427,1731312635381,-500.0,0.00024517,2]
[341933428,1731312635391,-500.0,0.00024517,2]
[341933429,1731312635400,-500.0,0.00024517,2]
[341933430,1731312635409,-500.0,0.00024517,2]
[341933431,1731312635419,-500.0,0.00024517,2]
[341933432,1731312635430,-500.0,0.00024517,2]
[341933433,1731312635439,-500.0,0.00024517,2]
[341933434,1731312635448,-486.88918617,0.00024517,2]
[341933435,1731312635458,-187.2,0.00024524,3]
[341933436,1731312635468,-210.77330146,0.00024555,7]
[341933437,1731312635477,-1000.0,0.00024557,2]
[341933438,1731312635487,-1565.17635015,0.00024557,2]
[341933439,1731312635496,-3000.0,0.000246,2]
[341933440,1731312635505,-500.0,0.000246,2]
[341933441,1731312635515,-454.43276245,0.000246,2]
[341933442,1731312635524,-1274.41209651,0.000246,2]
[341933443,1731312635533,-1274.41209651,0.000246,2]
[341933444,1731312635543,-1274.41209651,0.000246,2]
[341933445,1731312635552,-240.64776707,0.000246,2]
[341933500,1731312638323,-1033.76432944,0.000246,2]
[341933502,1731312638332,-162.705,0.0002461,7]
[341933504,1731312638342,-3000.0,0.0002461,2]
[341933506,1731312638352,-3000.0,0.0002462,2]
[341933508,1731312638361,-3000.0,0.0002463,2]
[341933510,1731312638371,-782.53783817,0.00024639,2]
[341933512,1731312638381,-3000.0,0.0002464,2]
[341933514,1731312638390,-210.04209144,0.00024647,3]
[341933925,1731312642632,-4.41790856,0.00024647,3]
[341933927,1731312642642,-321.7,0.00024647,3]
[341933929,1731312642651,-143.24630418,0.00024647,3]
[341933935,1731312642691,-17.60369582,0.00024647,3]
[341933938,1731312642701,-482.55,0.00024647,3]
[341933940,1731312642710,-171.62567253,0.0002465,2]
[341934012,1731312643344,-2828.37432747,0.0002465,2]
[341934014,1731312643354,-762.49892231,0.00024656,2]
[341934016,1731312643363,-500.0,0.00024656,2]
[341934018,1731312643373,-500.0,0.00024656,2]
[341934020,1731312643383,-500.0,0.00024656,2]
[341934022,1731312643392,-456.75325381,0.00024656,2]
[341934024,1731312643401,-500.0,0.00024656,2]
[341934026,1731312643410,-302.47177739,0.00024656,2]
[341934028,1731312643419,-500.0,0.00024656,2]
[341934030,1731312643429,-500.0,0.00024656,2]
[341934032,1731312643439,-500.0,0.00024656,2]
[341934035,1731312643448,-500.0,0.00024656,2]
[341934037,1731312643458,-500.0,0.00024656,2]
[341934039,1731312643467,-500.0,0.00024656,2]
[341934041,1731312643476,-500.0,0.00024656,2]
[341934043,1731312643486,-500.0,0.00024656,2]
[341934045,1731312643495,-500.0,0.00024656,2]
[341934047,1731312643504,-286.93825859,0.00024656,2]
[341934049,1731312643513,-151.0,0.00024657,7]
[341934051,1731312643522,-151.0,0.00024657,7]
[341934053,1731312643531,-151.0,0.00024657,7]
[341934055,1731312643540,-122.96905224,0.00024657,7]
[341934331,1731312646292,-153.0,0.00024149,2]
[341934333,1731312646303,-28.03094776,0.00024657,7]
[341934335,1731312646312,-512.65151329,0.00024657,2]
[341934337,1731312646322,-500.0,0.00024657,2]
[341934339,1731312646332,-500.0,0.00024657,2]
[341934341,1731312646341,-155.231127,0.00024657,7]
[341934343,1731312646350,-151.0,0.00024657,7]
[341934345,1731312646360,-223.426154,0.00024657,7]
[341934347,1731312646369,-502.29713894,0.00024657,2]
[341934349,1731312646378,-253.47926751,0.00024657,2]
[341934351,1731312646391,-500.0,0.00024657,2]
[341934353,1731312646400,-500.0,0.00024657,2]
[341934355,1731312646411,-500.0,0.00024657,2]
[341934357,1731312646421,-500.0,0.00024657,2]
[341934359,1731312646431,-500.0,0.00024657,2]
[341934361,1731312646442,-500.0,0.00024657,2]
[341934363,1731312646452,-500.0,0.00024657,2]
[341934365,1731312646462,-514.34053155,0.00024657,2]
[341934367,1731312646472,-500.0,0.00024657,2]
[341934369,1731312646483,-500.0,0.00024657,2]
[341934371,1731312646492,-500.0,0.00024657,2]
[341934373,1731312646503,-500.0,0.00024657,2]
[341934376,1731312646513,-158.48421295,0.00024657,2]
[341934378,1731312646522,-500.0,0.00024657,2]
[341934380,1731312646532,-500.0,0.00024657,2]
[341934381,1731312646542,-500.0,0.00024657,2]
[341934383,1731312646552,-500.0,0.00024657,2]
[341934385,1731312646561,-500.71423049,0.00024657,2]
[341934388,1731312646571,-500.0,0.00024657,2]
[341934389,1731312646580,-423.54159466,0.00024657,2]
[341934391,1731312646590,-500.0,0.00024657,2]
[341934393,1731312646599,-500.0,0.00024657,2]
[341934395,1731312646609,-500.0,0.00024657,2]
[341934397,1731312646619,-500.0,0.00024657,2]
[341934399,1731312646628,-500.0,0.00024657,2]
[341934401,1731312646637,-500.0,0.00024657,2]
[341934403,1731312646647,-500.0,0.00024657,2]
[341934406,1731312646658,-500.0,0.00024657,2]
[341934408,1731312646667,-500.0,0.00024657,2]
[341934409,1731312646677,-500.0,0.00024657,2]
[341934412,1731312646689,-500.0,0.00024657,2]
[341934414,1731312646698,-500.0,0.00024657,2]
[341934416,1731312646707,-500.0,0.00024657,2]
[341934418,1731312646717,-500.0,0.00024657,2]
[341934420,1731312646727,-1000.0,0.00024657,2]
[341934422,1731312646736,-500.0,0.00024657,2]
[341934423,1731312646746,-500.0,0.00024657,2]
[341934425,1731312646756,-500.0,0.00024657,2]
[341934428,1731312646765,-500.0,0.00024657,2]
[341934429,1731312646774,-504.97585831,0.00024657,2]
[341934431,1731312646784,-500.0,0.00024657,2]
[341934433,1731312646793,-497.69076039,0.00024657,2]
[341934435,1731312646802,-500.0,0.00024657,2]
[341934437,1731312646812,-500.0,0.00024657,2]
[341934439,1731312646822,-500.0,0.00024657,2]
[341934441,1731312646832,-524.92777058,0.00024657,2]
[341934444,1731312646843,-500.0,0.00024657,2]
[341934446,1731312646853,-500.0,0.00024657,2]
[341934448,1731312646865,-597.63961593,0.00024657,2]
[341934450,1731312646876,-500.0,0.00024657,2]
[341934452,1731312646890,-500.0,0.00024657,2]
[341934454,1731312646899,-500.0,0.00024657,2]
[341934456,1731312646907,-500.0,0.00024657,2]
[341934458,1731312646916,-500.0,0.00024657,2]
[341934460,1731312646927,-500.0,0.00024657,2]
[341934462,1731312646938,-502.01885031,0.00024657,2]
[341934464,1731312646946,-500.0,0.00024657,2]
[341934466,1731312646957,-500.0,0.00024657,2]
[341934468,1731312646966,-500.0,0.00024657,2]
[341934470,1731312646976,-500.0,0.00024657,2]
[341934472,1731312646985,-500.0,0.00024657,2]
[341934474,1731312646995,-500.0,0.00024657,2]
[341934476,1731312647004,-512.6510308,0.00024657,2]
[341934478,1731312647013,-500.0,0.00024657,2]
[341934480,1731312647023,-503.72256543,0.00024657,2]
[341934482,1731312647032,-500.0,0.00024657,2]
[341934484,1731312647041,-516.48707083,0.00024657,2]
[341934486,1731312647050,-406.89812868,0.00024657,2]
[341934488,1731312647060,-500.0,0.00024657,2]
[341934490,1731312647069,-500.0,0.00024657,2]
[341934492,1731312647078,-500.0,0.00024657,2]
[341934494,1731312647087,-164.33130783,0.00024657,2]
[341934496,1731312647096,-500.0,0.00024657,2]
[341934498,1731312647106,-429.87334161,0.00024657,2]
[341934500,1731312647114,-500.0,0.00024657,2]
[341934502,1731312647124,-500.0,0.00024657,2]
[341934504,1731312647133,-500.0,0.00024657,2]
[341934506,1731312647143,-502.05136771,0.00024657,2]
[341934508,1731312647153,-500.0,0.00024657,2]
[341934510,1731312647162,-500.0,0.00024657,2]
[341934512,1731312647172,-500.0,0.00024657,2]
[341934514,1731312647182,-230.38713235,0.00024657,2]
[341934516,1731312647192,-500.0,0.00024657,2]
[341934518,1731312647202,-508.34916632,0.00024657,2]
[341934520,1731312647212,-500.0,0.00024657,2]
[341934522,1731312647221,-151.0,0.00024657,7]
[341934524,1731312647231,-270.307327,0.00024657,7]
[341934526,1731312647240,-500.0,0.00024657,2]
[341934528,1731312647250,-295.37666053,0.00024657,2]
[341934530,1731312647259,-519.03096002,0.00024657,2]
[341934532,1731312647268,-151.0,0.00024657,7]
[341934534,1731312647277,-502.02630326,0.00024657,2]
[341934536,1731312647286,-500.0,0.00024657,2]
[341934538,1731312647296,-500.0,0.00024657,2]
[341934540,1731312647305,-500.0,0.00024657,2]
[341934542,1731312647315,-500.0,0.00024657,2]
[341934544,1731312647324,-500.0,0.00024657,2]
[341934546,1731312647334,-500.0,0.00024657,2]
[341934548,1731312647343,-500.0,0.00024657,2]
[341934550,1731312647353,-547.00643213,0.00024657,2]
[341934552,1731312647362,-500.0,0.00024657,2]
[341934554,1731312647372,-351.00202682,0.00024657,2]
[341934556,1731312647381,-500.0,0.00024657,2]
[341934558,1731312647390,-537.54872056,0.00024657,2]
[341934560,1731312647399,-500.0,0.00024657,2]
[341934562,1731312647408,-500.0,0.00024657,2]
[341934564,1731312647418,-500.0,0.00024657,2]
[341934566,1731312647426,-500.0,0.00024657,2]
[341934568,1731312647436,-151.0,0.00024657,7]
[341934570,1731312647445,-500.0,0.00024657,2]
[341934572,1731312647455,-151.0,0.00024657,7]
[341934574,1731312647464,-161.271816,0.00024657,7]
[341934576,1731312647473,-151.0,0.00024657,7]
[341934578,1731312647482,-151.0,0.00024657,7]
[341934579,1731312647491,-151.0,0.00024657,7]
[341934581,1731312647500,-284.936544,0.00024657,7]
[341934584,1731312647510,-500.0,0.00024657,2]
[341934586,1731312647520,-500.0,0.00024657,2]
[341934588,1731312647529,-500.0,0.00024657,2]
[341934589,1731312647538,-500.0,0.00024657,2]
[341934590,1731312647547,-500.0,0.00024657,2]
[341934591,1731312647556,-500.0,0.00024657,2]
[341934592,1731312647565,-500.0,0.00024657,2]
[341934593,1731312647574,-506.57958295,0.00024657,2]
[341934595,1731312647584,-641.23754861,0.00024657,2]
[341934597,1731312647593,-500.0,0.00024657,2]
[341934599,1731312647603,-500.0,0.00024657,2]
[341934601,1731312647612,-500.0,0.00024657,2]
[341934603,1731312647622,-151.0,0.00024657,7]
[341934605,1731312647631,-500.0,0.00024657,2]
[341934607,1731312647640,-151.0,0.00024657,7]
[341934609,1731312647649,-151.0,0.00024657,7]
[341934611,1731312647659,-151.0,0.00024657,7]
[341934613,1731312647668,-151.0,0.00024657,7]
[341934615,1731312647678,-151.0,0.00024657,7]
[341934617,1731312647688,-151.0,0.00024657,7]
[341934619,1731312647698,-151.0,0.00024657,7]
[341934621,1731312647707,-500.0,0.00024657,2]
[341934623,1731312647717,-500.0,0.00024657,2]
[341934625,1731312647726,-500.0,0.00024657,2]
[341934627,1731312647736,-467.90739279,0.00024657,2]
[341934629,1731312647745,-500.0,0.00024657,2]
[341934631,1731312647753,-500.0,0.00024657,2]
[341934633,1731312647763,-500.0,0.00024657,2]
[341934635,1731312647772,-500.0,0.00024657,2]
[341934637,1731312647781,-500.0,0.00024657,2]
[341934640,1731312647791,-450.93018868,0.00024657,2]
[341935222,1731312747160,-500.0,0.00024657,15]
[341935223,1731312763555,-151.0,0.00024657,7]
[341935224,1731312763578,-151.0,0.00024657,7]
[341935225,1731312763600,-151.0,0.00024657,7]
[341935226,1731312763622,-151.0,0.00024657,7]
[341935227,1731312763655,-151.0,0.00024657,7]
[341935228,1731312763677,-151.0,0.00024657,7]
[341935229,1731312763700,-151.0,0.00024657,7]
[341935230,1731312763725,-275.852734,0.00024657,7]
[341935231,1731312763746,-151.0,0.00024657,7]
[341935232,1731312763767,-165.489115,0.00024657,7]
[341935233,1731312763790,-151.0,0.00024657,7]
[341935234,1731312763812,-151.0,0.00024657,7]
[341935235,1731312763833,-151.0,0.00024657,7]
[341935236,1731312763855,-151.0,0.00024657,7]
[341935237,1731312763878,-151.0,0.00024657,7]
[341935238,1731312763901,-151.0,0.00024657,7]
[341935239,1731312763927,-151.0,0.00024657,7]
[341935240,1731312763949,-151.0,0.00024657,7]
[341935241,1731312763973,-151.0,0.00024657,7]
[341935242,1731312763996,-169.373028,0.00024657,7]
[341935243,1731312764019,-151.0,0.00024657,7]
[341935244,1731312764041,-151.0,0.00024657,7]
[341935245,1731312764064,-201.766342,0.00024657,7]
[341935246,1731312764085,-151.0,0.00024657,7]
[341935247,1731312764107,-151.0,0.00024657,7]
[341935248,1731312764128,-151.0,0.00024657,7]
[341935249,1731312764150,-151.0,0.00024657,7]
[341935250,1731312764171,-151.0,0.00024657,7]
[341935251,1731312764195,-151.0,0.00024657,7]
[341935252,1731312764216,-151.0,0.00024657,7]
[341935253,1731312764237,-151.0,0.00024657,7]
[341935254,1731312764258,-151.0,0.00024657,7]
[341935255,1731312764280,-151.0,0.00024657,7]
[341935256,1731312764303,-151.0,0.00024657,7]
[341935257,1731312764323,-151.0,0.00024657,7]
[341935258,1731312764345,-151.0,0.00024657,7]
[341935259,1731312764366,-151.0,0.00024657,7]
[341935260,1731312764388,-151.0,0.00024657,7]
[341935261,1731312764410,-151.0,0.00024657,7]
[341935262,1731312764432,-151.0,0.00024657,7]
[341935263,1731312764453,-151.0,0.00024657,7]
[341935264,1731312764474,-151.0,0.00024657,7]
[341935265,1731312764495,-151.0,0.00024657,7]
[341935266,1731312764516,-151.0,0.00024657,7]
[341935267,1731312764537,-151.0,0.00024657,7]
[341935268,1731312764560,-151.0,0.00024657,7]
[341935269,1731312764581,-151.0,0.00024657,7]
[341935270,1731312764604,-151.0,0.00024657,7]
[341935271,1731312764625,-151.0,0.00024657,7]
[341935272,1731312764646,-151.0,0.00024657,7]
[341935273,1731312764667,-151.0,0.00024657,7]
[341935274,1731312764687,-157.195419,0.00024657,7]
[341935275,1731312764709,-151.0,0.00024657,7]
[341935276,1731312764729,-151.0,0.00024657,7]
[341935277,1731312764750,-151.0,0.00024657,7]
[341935278,1731312764774,-151.0,0.00024657,7]
[341935279,1731312764796,-151.0,0.00024657,7]
[341935280,1731312764819,-151.0,0.00024657,7]
[341935281,1731312764840,-151.0,0.00024657,7]
[341935282,1731312764861,-151.0,0.00024657,7]
[341935283,1731312764882,-151.0,0.00024657,7]
[341935284,1731312764902,-151.0,0.00024657,7]
[341935285,1731312764927,-151.0,0.00024657,7]
[341935286,1731312764949,-151.0,0.00024657,7]
[341935287,1731312764971,-151.0,0.00024657,7]
[341935288,1731312764993,-151.0,0.00024657,7]
[341935289,1731312765018,-151.0,0.00024657,7]
[341935290,1731312765042,-151.0,0.00024657,7]
[341935291,1731312765064,-151.0,0.00024657,7]
[341935292,1731312765087,-212.182348,0.00024657,7]
[341935293,1731312765108,-283.985416,0.00024657,7]
[341935294,1731312766398,151.0,0.00024657,7]
[341935295,1731312766704,151.0,0.00024657,7]
[341935296,1731312767015,242.235929,0.00024657,7]
[341935297,1731312817112,151.0,0.00024657,7]
[341935298,1731312880784,500.0,0.00024657,15]
[341935299,1731312906728,151.0,0.00020844,2]
[341935303,1731313121901,162.705,0.00024647,7]
[341935304,1731313125903,1169.27083333,0.00020844,2]
[341935311,1731313225498,160.876194,0.00013973,2]
[341935315,1731313294857,151.0,0.00024657,7]
[341935318,1731313438423,1169.27083333,0.00020844,2]
[341935338,1731313723281,13873.09457647,0.00031336,30]
[341935348,1731313749765,1169.27083333,0.00020844,2]
[341935391,1731313832463,-152.29324599,0.00020854,2]
[341935393,1731313832474,-1169.27083333,0.00020857,2]
[341935395,1731313832484,-229.01370293,0.00023439,2]
[341935486,1731313840245,-70.98629707,0.00023439,2]
[341935488,1731313840255,-300.0,0.00023439,2]
[341935491,1731313840266,-150.0,0.0002344,2]
[341935492,1731313840277,-289.81170293,0.0002344,2]
[341935496,1731313840306,-378.63614318,0.0002344,2]
[341935566,1731313840984,-458.55215389,0.0002344,2]
[341935568,1731313840994,-530.0,0.0002344,2]
[341935570,1731313841003,-2391.0,0.0002344,2]
[341935572,1731313841012,-9075.2407482,0.00023467,2]
[341935574,1731313841021,-3975.66619871,0.00024,2]
[341935576,1731313841030,-156.0,0.00024093,3]
[341935578,1731313841039,-156.0,0.00024348,3]
[341935580,1731313841048,-2437.42594886,0.0002436,2]
[341935582,1731313841057,-12689.8888272,0.00024397,2]
[341935584,1731313841067,-600.0,0.0002446,2]
[341935586,1731313841077,-4299.999999,0.000245,2]
[341935588,1731313841086,-1000.0,0.00024557,2]
[341935590,1731313841095,-302.95517496,0.00024557,2]
[341935592,1731313841104,-310.53313702,0.00024557,2]